[Event "*** Titled Tuesday Blitz"]
[Site "Chess.com"]
[Date "2018.05.01"]
[Round "1"]
[White "ENEASZ"]
[Black "FearNoEvil12"]
[Result "1-0"]
[WhiteElo "2432"]
[BlackElo "1952"]
[TimeControl "180+2"]
[EndTime "13:05:21 PDT"]
[Termination "ENEASZ won by checkmate"]

1. e4 {[%clk 0:03:00.6]} 1... a6 {[%clk 0:03:01.1]} 2. d4 {[%clk 0:03:00.8]}
2... b5 {[%clk 0:03:02.4]} 3. Bd3 {[%clk 0:03:01.2]} 3... Bb7 {[%clk 0:03:03.1]}
4. Nf3 {[%clk 0:03:01]} 4... e6 {[%clk 0:03:04.5]} 5. O-O {[%clk 0:03:01.3]}
5... Nf6 {[%clk 0:03:05.2]} 6. Re1 {[%clk 0:03:01.2]} 6... d6 {[%clk 0:03:05.5]}
7. c3 {[%clk 0:03:00.9]} 7... Nbd7 {[%clk 0:03:06.5]} 8. Bg5 {[%clk 0:02:58.8]}
8... h6 {[%clk 0:03:07.1]} 9. Bh4 {[%clk 0:02:59.4]} 9... g5 {[%clk 0:03:07.9]}
10. Bg3 {[%clk 0:03:00.3]} 10... Rg8 {[%clk 0:03:09.4]} 11. e5 {[%clk
0:03:01.1]} 11... Nd5 {[%clk 0:03:09.6]} 12. Nbd2 {[%clk 0:03:00]} 12... h5
{[%clk 0:03:10]} 13. exd6 {[%clk 0:02:51.9]} 13... cxd6 {[%clk 0:03:08.9]} 14.
Ne4 {[%clk 0:02:52.3]} 14... Nf4 {[%clk 0:02:38.6]} 15. Bf1 {[%clk 0:02:39.8]}
15... h4 {[%clk 0:02:35]} 16. Bxf4 {[%clk 0:02:40.3]} 16... gxf4 {[%clk
0:02:35.4]} 17. d5 {[%clk 0:02:33.6]} 17... e5 {[%clk 0:02:33.4]} 18. c4 {[%clk
0:02:25.9]} 18... bxc4 {[%clk 0:02:33.1]} 19. Bxc4 {[%clk 0:02:27.8]} 19... Nf6
{[%clk 0:02:31.7]} 20. Nxf6+ {[%clk 0:02:21.5]} 20... Qxf6 {[%clk 0:02:31]} 21.
Qa4+ {[%clk 0:02:22.2]} 21... Ke7 {[%clk 0:02:31.1]} 22. Qb4 {[%clk 0:02:20.7]}
22... Bc8 {[%clk 0:02:29.5]} 23. Nxe5 {[%clk 0:02:13.7]} 23... Qg7 {[%clk
0:02:00]} 24. Ng6+ {[%clk 0:01:45.9]} 24... Kf6 {[%clk 0:01:47]} 25. Nxf4 {[%clk
0:01:45.2]} 25... Qg5 {[%clk 0:01:37.5]} 26. Qc3+ {[%clk 0:01:42.8]} 26... Kf5
{[%clk 0:01:32.7]} 27. Qd3+ {[%clk 0:01:38.4]} 27... Kf6 {[%clk 0:01:25.6]} 28.
Qd4+ {[%clk 0:01:39]} 28... Kf5 {[%clk 0:01:20.7]} 29. Bd3+ {[%clk 0:01:39.1]}
29... Kg4 {[%clk 0:01:21.6]} 30. h3# {[%clk 0:01:39.7]} 1-0

[Event "*** Titled Tuesday Blitz"]
[Site "Chess.com"]
[Date "2018.05.01"]
[Round "1"]
[White "kleinebeer98"]
[Black "tomozupan"]
[Result "0-1"]
[WhiteElo "2462"]
[BlackElo "2141"]
[TimeControl "180+2"]
[EndTime "13:05:24 PDT"]
[Termination "tomozupan won by resignation"]

1. e4 {[%clk 0:03:01]} 1... e5 {[%clk 0:02:58.1]} 2. Nf3 {[%clk 0:03:00.8]} 2...
Nc6 {[%clk 0:02:58.4]} 3. Nc3 {[%clk 0:03:01.5]} 3... Nf6 {[%clk 0:02:56.9]} 4.
a3 {[%clk 0:03:02.6]} 4... Be7 {[%clk 0:02:36.1]} 5. d4 {[%clk 0:02:56.7]} 5...
exd4 {[%clk 0:02:33.2]} 6. Nxd4 {[%clk 0:02:55.5]} 6... O-O {[%clk 0:02:26.6]}
7. Nxc6 {[%clk 0:02:45.5]} 7... dxc6 {[%clk 0:02:24.8]} 8. Bd3 {[%clk
0:02:25.7]} 8... Re8 {[%clk 0:02:08.4]} 9. O-O {[%clk 0:02:22.6]} 9... Bf8
{[%clk 0:02:03.3]} 10. e5 {[%clk 0:02:20.5]} 10... Nd5 {[%clk 0:01:57.7]} 11.
Nxd5 {[%clk 0:02:19.2]} 11... cxd5 {[%clk 0:01:58]} 12. f4 {[%clk 0:02:20]}
12... Qh4 {[%clk 0:01:50.9]} 13. g3 {[%clk 0:02:14.8]} 13... Qh3 {[%clk
0:01:49.6]} 14. Qf3 {[%clk 0:02:09.1]} 14... Bg4 {[%clk 0:01:35.3]} 15. Qxd5
{[%clk 0:02:01.7]} 15... Rad8 {[%clk 0:01:33.5]} 16. Qg2 {[%clk 0:02:01.8]}
16... Qh5 {[%clk 0:01:26.4]} 17. h4 {[%clk 0:01:52.5]} 17... Bc5+ {[%clk
0:01:19.4]} 18. Kh2 {[%clk 0:01:52.9]} 18... f6 {[%clk 0:01:04.8]} 19. exf6
{[%clk 0:01:47.4]} 19... Rxd3 {[%clk 0:00:56.1]} 0-1

[Event "*** Titled Tuesday Blitz"]
[Site "Chess.com"]
[Date "2018.05.01"]
[Round "1"]
[White "joejan"]
[Black "swayamsm"]
[Result "0-1"]
[WhiteElo "2158"]
[BlackElo "2507"]
[TimeControl "180+2"]
[EndTime "13:05:46 PDT"]
[Termination "swayamsm won by resignation"]

1. e4 {[%clk 0:03:01.9]} 1... e6 {[%clk 0:03:00]} 2. d3 {[%clk 0:03:02.3]} 2...
d5 {[%clk 0:02:53.8]} 3. Nd2 {[%clk 0:03:03.5]} 3... b6 {[%clk 0:02:31]} 4. g3
{[%clk 0:03:01]} 4... Nf6 {[%clk 0:02:26]} 5. Bg2 {[%clk 0:03:01.6]} 5... Bc5
{[%clk 0:02:18.8]} 6. Ngf3 {[%clk 0:03:00.3]} 6... dxe4 {[%clk 0:02:16.9]} 7.
dxe4 {[%clk 0:02:54.8]} 7... Ba6 {[%clk 0:02:10.6]} 8. e5 {[%clk 0:02:44.5]}
8... Ng4 {[%clk 0:02:03.2]} 9. Ne4 {[%clk 0:02:39.2]} 9... Qxd1+ {[%clk
0:01:48.5]} 10. Kxd1 {[%clk 0:02:38.5]} 10... Nxf2+ {[%clk 0:01:33.5]} 11. Nxf2
{[%clk 0:02:38.1]} 11... Bxf2 {[%clk 0:01:35.4]} 12. Ng5 {[%clk 0:02:30.8]}
12... c6 {[%clk 0:01:17.9]} 13. Ne4 {[%clk 0:02:30.9]} 13... Bd4 {[%clk
0:01:15.7]} 14. Nd6+ {[%clk 0:02:09]} 14... Ke7 {[%clk 0:01:13.5]} 15. Bf4
{[%clk 0:02:04.7]} 15... Bxb2 {[%clk 0:01:09.5]} 16. Rb1 {[%clk 0:02:05.8]}
16... Bd4 {[%clk 0:01:08.2]} 17. Re1 {[%clk 0:01:57.3]} 17... Rd8 {[%clk
0:01:06]} 18. Kc1 {[%clk 0:01:57.5]} 18... h6 {[%clk 0:00:59.1]} 19. h4 {[%clk
0:01:56.8]} 19... Bc5 {[%clk 0:00:44.2]} 20. h5 {[%clk 0:01:49.2]} 20... Ba3+
{[%clk 0:00:40]} 21. Kd1 {[%clk 0:01:46.7]} 21... f6 {[%clk 0:00:41.3]} 22. Rb3
{[%clk 0:01:33]} 22... fxe5 {[%clk 0:00:37.6]} 23. Rxa3 {[%clk 0:01:32.4]} 23...
exf4 {[%clk 0:00:38.7]} 0-1

[Event "*** Titled Tuesday Blitz"]
[Site "Chess.com"]
[Date "2018.05.01"]
[Round "1"]
[White "vugarrasulov"]
[Black "GoingKronos"]
[Result "1-0"]
[WhiteElo "2740"]
[BlackElo "2379"]
[TimeControl "180+2"]
[EndTime "13:06:05 PDT"]
[Termination "vugarrasulov won by checkmate"]

1. e4 {[%clk 0:03:01.9]} 1... e6 {[%clk 0:03:00.3]} 2. d4 {[%clk 0:03:02.7]}
2... d5 {[%clk 0:03:01.4]} 3. Nd2 {[%clk 0:03:03.9]} 3... c5 {[%clk 0:03:01.8]}
4. exd5 {[%clk 0:03:04.6]} 4... exd5 {[%clk 0:03:02.7]} 5. Ngf3 {[%clk
0:03:05.5]} 5... a6 {[%clk 0:03:03.4]} 6. dxc5 {[%clk 0:03:04.3]} 6... Bxc5
{[%clk 0:03:03.5]} 7. Bd3 {[%clk 0:03:05.9]} 7... Qe7+ {[%clk 0:03:01.8]} 8. Qe2
{[%clk 0:03:06.8]} 8... Bg4 {[%clk 0:03:01.1]} 9. h3 {[%clk 0:03:06.1]} 9... Bh5
{[%clk 0:03:01.6]} 10. O-O {[%clk 0:03:02.7]} 10... Nc6 {[%clk 0:02:59.5]} 11.
Qxe7+ {[%clk 0:03:02.5]} 11... Ngxe7 {[%clk 0:03:00]} 12. Nb3 {[%clk 0:03:03.6]}
12... Bb6 {[%clk 0:03:00.1]} 13. Be3 {[%clk 0:02:57.4]} 13... Bxe3 {[%clk
0:02:58.1]} 14. fxe3 {[%clk 0:02:57.9]} 14... O-O-O {[%clk 0:02:48.6]} 15. Nfd4
{[%clk 0:02:58.4]} 15... f6 {[%clk 0:02:45]} 16. Ne6 {[%clk 0:02:56]} 16... Rdg8
{[%clk 0:02:42.5]} 17. Nbc5 {[%clk 0:02:49.3]} 17... Bf7 {[%clk 0:02:37.3]} 18.
a4 {[%clk 0:02:45.5]} 18... Ne5 {[%clk 0:02:26.8]} 19. Nd4 {[%clk 0:02:38.9]}
19... N7c6 {[%clk 0:02:20.3]} 20. Bf5+ {[%clk 0:02:38.4]} 20... Kb8 {[%clk
0:02:11.6]} 21. b4 {[%clk 0:02:28.9]} 21... Rd8 {[%clk 0:01:35.4]} 22. b5 {[%clk
0:02:22]} 22... axb5 {[%clk 0:01:29.6]} 23. axb5 {[%clk 0:02:22.6]} 23... Nxd4
{[%clk 0:01:30.5]} 24. exd4 {[%clk 0:02:24.5]} 24... Nc4 {[%clk 0:01:31.5]} 25.
b6 {[%clk 0:02:13.9]} 25... Nxb6 {[%clk 0:01:23.6]} 26. Rfb1 {[%clk 0:02:14.1]}
26... Rd6 {[%clk 0:01:24.1]} 27. Rb5 {[%clk 0:01:49.4]} 27... Bg6 {[%clk
0:01:18.8]} 28. Bxg6 {[%clk 0:01:46.6]} 28... hxg6 {[%clk 0:01:20]} 29. Re1
{[%clk 0:01:44.9]} 29... Rc8 {[%clk 0:01:11.5]} 30. c3 {[%clk 0:01:36.7]} 30...
Rc7 {[%clk 0:01:06]} 31. Kf2 {[%clk 0:01:35.4]} 31... Nc4 {[%clk 0:01:02.4]} 32.
Re8+ {[%clk 0:01:29.7]} 32... Rc8 {[%clk 0:01:03]} 33. Rxb7+ {[%clk 0:01:30.3]}
33... Ka8 {[%clk 0:01:03.4]} 34. Rxc8# {[%clk 0:01:32.2]} 1-0

[Event "*** Titled Tuesday Blitz"]
[Site "Chess.com"]
[Date "2018.05.01"]
[Round "1"]
[White "dolynachess"]
[Black "Angry_Twin"]
[Result "0-1"]
[WhiteElo "2370"]
[BlackElo "2702"]
[TimeControl "180+2"]
[EndTime "13:06:07 PDT"]
[Termination "Angry_Twin won by resignation"]

1. d4 {[%clk 0:03:01.9]} 1... Nf6 {[%clk 0:03:00.6]} 2. c4 {[%clk 0:03:03.2]}
2... g6 {[%clk 0:03:02.1]} 3. Nc3 {[%clk 0:03:04.1]} 3... d5 {[%clk 0:03:03.8]}
4. cxd5 {[%clk 0:03:06]} 4... Nxd5 {[%clk 0:03:05.7]} 5. e4 {[%clk 0:03:07.9]}
5... Nxc3 {[%clk 0:03:07.2]} 6. bxc3 {[%clk 0:03:09.8]} 6... Bg7 {[%clk
0:03:09.1]} 7. Bc4 {[%clk 0:03:11.1]} 7... c5 {[%clk 0:03:10.2]} 8. Ne2 {[%clk
0:03:12.4]} 8... O-O {[%clk 0:03:10.8]} 9. O-O {[%clk 0:03:13.7]} 9... Nc6
{[%clk 0:03:12.6]} 10. Be3 {[%clk 0:03:15]} 10... Bd7 {[%clk 0:03:09.9]} 11. Rb1
{[%clk 0:03:12.7]} 11... Qc7 {[%clk 0:03:10]} 12. dxc5 {[%clk 0:03:13.6]} 12...
Ne5 {[%clk 0:03:10.4]} 13. Bd5 {[%clk 0:03:12.1]} 13... Bc6 {[%clk 0:03:11.6]}
14. Nd4 {[%clk 0:02:38.4]} 14... Rad8 {[%clk 0:03:11.8]} 15. f4 {[%clk
0:02:29.4]} 15... e6 {[%clk 0:03:09.2]} 16. Bxc6 {[%clk 0:02:25.1]} 16... Nxc6
{[%clk 0:03:09.7]} 17. e5 {[%clk 0:02:25.2]} 17... Ne7 {[%clk 0:03:10.7]} 18.
Nb5 {[%clk 0:02:19.7]} 18... Qc6 {[%clk 0:03:06.5]} 19. Nd6 {[%clk 0:02:20.6]}
19... Nf5 {[%clk 0:03:07.7]} 20. Bf2 {[%clk 0:02:18.4]} 20... b6 {[%clk
0:03:08.8]} 21. cxb6 {[%clk 0:02:09.7]} 21... Nxd6 {[%clk 0:03:06.6]} 22. exd6
{[%clk 0:02:06.5]} 22... axb6 {[%clk 0:03:07.7]} 23. Rxb6 {[%clk 0:02:06.2]}
23... Qxc3 {[%clk 0:03:09]} 24. a4 {[%clk 0:02:05.1]} 24... Qc4 {[%clk
0:03:05.6]} 25. a5 {[%clk 0:01:56]} 25... Qxf4 {[%clk 0:03:05.3]} 26. a6 {[%clk
0:01:57]} 26... Rd7 {[%clk 0:03:04.2]} 27. Qd3 {[%clk 0:01:49]} 27... Rfd8
{[%clk 0:03:02.7]} 28. Rd1 {[%clk 0:01:49.7]} 28... h5 {[%clk 0:02:59]} 29. Kh1
{[%clk 0:01:42.4]} 29... Bf8 {[%clk 0:02:59.3]} 30. Bg3 {[%clk 0:01:42.9]} 30...
Qa4 {[%clk 0:03:00.2]} 31. Rb7 {[%clk 0:01:37.3]} 31... Rxd6 {[%clk 0:03:00.7]}
32. Bxd6 {[%clk 0:01:32.7]} 32... Rxd6 {[%clk 0:03:02.6]} 33. Qxd6 {[%clk
0:01:26.9]} 33... Bxd6 {[%clk 0:03:04.5]} 34. Rf1 {[%clk 0:01:23.5]} 34... Qxa6
{[%clk 0:03:03.2]} 35. Rbxf7 {[%clk 0:01:24.3]} 35... Qe2 {[%clk 0:03:01.4]} 36.
R7f6 {[%clk 0:01:23.7]} 36... Be7 {[%clk 0:03:02.5]} 37. R6f2 {[%clk 0:01:19.2]}
37... Qe5 {[%clk 0:03:03.3]} 38. g3 {[%clk 0:01:19.1]} 38... Qd5+ {[%clk
0:03:03.8]} 39. Rg2 {[%clk 0:01:18.1]} 39... Kg7 {[%clk 0:03:02.3]} 40. h4
{[%clk 0:01:19.1]} 40... g5 {[%clk 0:03:02.9]} 41. hxg5 {[%clk 0:01:19.1]} 41...
Bxg5 {[%clk 0:03:04.4]} 42. Kh2 {[%clk 0:01:20.5]} 42... Kg6 {[%clk 0:03:03.9]}
43. Rgf2 {[%clk 0:01:20.5]} 43... e5 {[%clk 0:03:04.5]} 44. Rf8 {[%clk 0:01:20]}
44... e4 {[%clk 0:03:05.7]} 45. Rb8 {[%clk 0:01:09.9]} 45... Qd2+ {[%clk
0:03:03]} 46. Kh3 {[%clk 0:01:10.3]} 46... Qd7+ {[%clk 0:03:01.7]} 47. Kg2
{[%clk 0:01:11.3]} 47... e3 {[%clk 0:03:00.2]} 48. Rb6+ {[%clk 0:01:12.1]} 48...
Kg7 {[%clk 0:03:01]} 49. Rfb1 {[%clk 0:01:12.9]} 49... Qd5+ {[%clk 0:03:02]} 50.
Kh3 {[%clk 0:01:13.6]} 50... Qf5+ {[%clk 0:03:02.4]} 51. Kg2 {[%clk 0:01:14.6]}
51... Qf2+ {[%clk 0:03:03.7]} 52. Kh3 {[%clk 0:01:16.4]} 52... e2 {[%clk
0:03:05.6]} 53. Rb7+ {[%clk 0:01:14.9]} 53... Kg6 {[%clk 0:03:06.9]} 54. R7b6+
{[%clk 0:01:16.2]} 54... Bf6 {[%clk 0:03:08.6]} 55. Re6 {[%clk 0:01:14.5]} 55...
Qf5+ {[%clk 0:03:09.7]} 0-1

[Event "*** Titled Tuesday Blitz"]
[Site "Chess.com"]
[Date "2018.05.01"]
[Round "1"]
[White "Khamrakulov_Djurabek"]
[Black "TheNomNomFactor"]
[Result "1-0"]
[WhiteElo "2633"]
[BlackElo "2303"]
[TimeControl "180+2"]
[EndTime "13:06:12 PDT"]
[Termination "Khamrakulov_Djurabek won by resignation"]

1. e4 {[%clk 0:03:01.9]} 1... e5 {[%clk 0:03:00.4]} 2. Nf3 {[%clk 0:03:02.6]}
2... Nc6 {[%clk 0:03:02]} 3. d4 {[%clk 0:03:03.1]} 3... exd4 {[%clk 0:03:03]} 4.
Nxd4 {[%clk 0:03:04.1]} 4... Nf6 {[%clk 0:03:04.5]} 5. Nxc6 {[%clk 0:03:05]}
5... bxc6 {[%clk 0:03:06.4]} 6. e5 {[%clk 0:03:06.2]} 6... Qe7 {[%clk
0:03:06.7]} 7. Qe2 {[%clk 0:03:07.7]} 7... Nd5 {[%clk 0:03:08.2]} 8. c4 {[%clk
0:03:08.9]} 8... Nb6 {[%clk 0:03:09.7]} 9. b3 {[%clk 0:03:08.8]} 9... a5 {[%clk
0:03:10]} 10. g3 {[%clk 0:03:08.8]} 10... a4 {[%clk 0:03:09.6]} 11. Ba3 {[%clk
0:03:09.7]} 11... Qe6 {[%clk 0:03:04.2]} 12. Bg2 {[%clk 0:03:10.1]} 12... Bxa3
{[%clk 0:02:47]} 13. Nxa3 {[%clk 0:03:10.3]} 13... O-O {[%clk 0:02:44]} 14. O-O
{[%clk 0:03:06.1]} 14... d5 {[%clk 0:02:42.1]} 15. cxd5 {[%clk 0:03:01.2]} 15...
cxd5 {[%clk 0:02:42.3]} 16. Nb5 {[%clk 0:03:01.9]} 16... Ba6 {[%clk 0:02:29.8]}
17. Rfe1 {[%clk 0:02:59.5]} 17... c6 {[%clk 0:02:16.9]} 18. Nc7 {[%clk
0:02:59.6]} 18... Bxe2 {[%clk 0:02:17.9]} 19. Nxe6 {[%clk 0:03:00.5]} 19... fxe6
{[%clk 0:02:19.5]} 20. Rxe2 {[%clk 0:03:01.6]} 20... axb3 {[%clk 0:02:21.1]} 21.
Rb2 {[%clk 0:03:02.8]} 21... Rxa2 {[%clk 0:02:20.4]} 22. Raxa2 {[%clk
0:03:03.5]} 22... bxa2 {[%clk 0:02:21.7]} 23. Rxa2 {[%clk 0:03:05.1]} 23... Nc4
{[%clk 0:02:01.6]} 24. f4 {[%clk 0:02:59.7]} 24... Rd8 {[%clk 0:01:22.8]} 25.
Bh3 {[%clk 0:02:58.9]} 25... Re8 {[%clk 0:01:10.5]} 26. Ra6 {[%clk 0:02:58.6]}
26... Kf7 {[%clk 0:01:02.1]} 27. Rxc6 {[%clk 0:02:59]} 27... g5 {[%clk 0:01:03]}
28. Kf2 {[%clk 0:02:49.4]} 28... gxf4 {[%clk 0:00:54.5]} 29. gxf4 {[%clk
0:02:50.5]} 29... Re7 {[%clk 0:00:53.9]} 30. Bg4 {[%clk 0:02:50.7]} 30... Na5
{[%clk 0:00:52.2]} 31. Ra6 {[%clk 0:02:46.9]} 31... Nb3 {[%clk 0:00:48.5]} 32.
Rc6 {[%clk 0:02:45.3]} 32... Nd4 {[%clk 0:00:48.4]} 33. Rb6 {[%clk 0:02:44.9]}
33... Kg7 {[%clk 0:00:43.4]} 34. Ke3 {[%clk 0:02:45.2]} 34... Nc2+ {[%clk
0:00:30.2]} 35. Kd2 {[%clk 0:02:45.8]} 35... Nd4 {[%clk 0:00:31.1]} 36. Kd3
{[%clk 0:02:46.8]} 36... Nf5 {[%clk 0:00:30.8]} 37. Bxf5 {[%clk 0:02:47.6]}
37... exf5 {[%clk 0:00:32.7]} 38. Rf6 {[%clk 0:02:48.3]} 38... Ra7 {[%clk
0:00:29.5]} 39. Rxf5 {[%clk 0:02:48.6]} 39... Ra4 {[%clk 0:00:31]} 40. e6 {[%clk
0:02:45.2]} 40... Re4 {[%clk 0:00:31.2]} 41. Re5 {[%clk 0:02:46.2]} 41... Rxe5
{[%clk 0:00:24.5]} 42. fxe5 {[%clk 0:02:46.7]} 42... Kf8 {[%clk 0:00:26.4]} 43.
Kd4 {[%clk 0:02:47.9]} 43... Ke8 {[%clk 0:00:26.7]} 44. Kxd5 {[%clk 0:02:42.6]}
44... Ke7 {[%clk 0:00:28.1]} 45. h4 {[%clk 0:02:42.5]} 45... h5 {[%clk
0:00:29.1]} 46. Kd4 {[%clk 0:02:43.1]} 46... Kxe6 {[%clk 0:00:31]} 47. Ke4
{[%clk 0:02:44.2]} 47... Ke7 {[%clk 0:00:30]} 48. Kf5 {[%clk 0:02:45.6]} 48...
Kf7 {[%clk 0:00:31.6]} 49. Kg5 {[%clk 0:02:46.5]} 49... Ke6 {[%clk 0:00:33.5]}
50. Kxh5 {[%clk 0:02:47.4]} 50... Kxe5 {[%clk 0:00:35.4]} 51. Kg6 {[%clk
0:02:48.4]} 1-0

[Event "*** Titled Tuesday Blitz"]
[Site "Chess.com"]
[Date "2018.05.01"]
[Round "1"]
[White "gmcorrales"]
[Black "Aygehovit1992"]
[Result "1/2-1/2"]
[WhiteElo "2744"]
[BlackElo "2401"]
[TimeControl "180+2"]
[EndTime "13:06:13 PDT"]
[Termination "Game drawn by repetition"]

1. d4 {[%clk 0:02:51.7]} 1... g6 {[%clk 0:02:59.5]} 2. c4 {[%clk 0:02:51.5]}
2... Bg7 {[%clk 0:03:00.9]} 3. Nc3 {[%clk 0:02:52.1]} 3... d6 {[%clk 0:03:02.4]}
4. h4 {[%clk 0:02:46.5]} 4... Nc6 {[%clk 0:03:00.3]} 5. d5 {[%clk 0:02:47.1]}
5... Ne5 {[%clk 0:03:01.5]} 6. h5 {[%clk 0:02:43.2]} 6... gxh5 {[%clk
0:03:00.5]} 7. Nf3 {[%clk 0:02:39.5]} 7... Nxf3+ {[%clk 0:02:56.2]} 8. gxf3
{[%clk 0:02:40.6]} 8... Nf6 {[%clk 0:02:58.1]} 9. Bg5 {[%clk 0:02:32.3]} 9...
Bf5 {[%clk 0:02:55.6]} 10. e4 {[%clk 0:02:21.8]} 10... Bg6 {[%clk 0:02:56.6]}
11. Bd3 {[%clk 0:02:20.5]} 11... Nd7 {[%clk 0:02:57.4]} 12. f4 {[%clk
0:02:20.3]} 12... Bxc3+ {[%clk 0:02:53.9]} 13. bxc3 {[%clk 0:02:20.8]} 13... f6
{[%clk 0:02:55.3]} 14. Bh6 {[%clk 0:02:18.7]} 14... Nc5 {[%clk 0:02:56.4]} 15.
f5 {[%clk 0:02:19.7]} 15... Bf7 {[%clk 0:02:57.1]} 16. Bc2 {[%clk 0:02:15.5]}
16... Qd7 {[%clk 0:02:57.5]} 17. Be3 {[%clk 0:02:12.5]} 17... O-O-O {[%clk
0:02:56.7]} 18. Bxc5 {[%clk 0:02:11.7]} 18... dxc5 {[%clk 0:02:54.6]} 19. Rb1
{[%clk 0:01:28.8]} 19... Qd6 {[%clk 0:02:52.6]} 20. Bd3 {[%clk 0:01:22.9]} 20...
Rhg8 {[%clk 0:02:48.9]} 21. Qf3 {[%clk 0:01:20.5]} 21... Rg4 {[%clk 0:02:49]}
22. Kd2 {[%clk 0:01:20]} 22... Rdg8 {[%clk 0:02:49.5]} 23. Qe3 {[%clk
0:01:18.7]} 23... Rf4 {[%clk 0:02:47]} 24. Rbg1 {[%clk 0:01:12.4]} 24... Rxg1
{[%clk 0:02:47.9]} 25. Rxg1 {[%clk 0:01:14.3]} 25... Rg4 {[%clk 0:02:47.9]} 26.
Rxg4 {[%clk 0:01:10.8]} 26... hxg4 {[%clk 0:02:49.1]} 27. Qh6 {[%clk 0:01:12.7]}
27... Kd7 {[%clk 0:02:49.7]} 28. Ke2 {[%clk 0:01:06.8]} 28... g3 {[%clk
0:02:41.6]} 29. f4 {[%clk 0:01:06.8]} 29... Qa6 {[%clk 0:02:37.7]} 30. e5 {[%clk
0:01:01.3]} 30... Qxa2+ {[%clk 0:02:38.3]} 31. Ke3 {[%clk 0:00:57.2]} 31... Qf2+
{[%clk 0:02:38]} 32. Ke4 {[%clk 0:00:56]} 32... g2 {[%clk 0:02:29.8]} 33. e6+
{[%clk 0:00:56.2]} 33... Kd6 {[%clk 0:02:31.2]} 34. Qf8 {[%clk 0:00:55.9]} 34...
Qe1+ {[%clk 0:02:29.5]} 35. Kf3 {[%clk 0:00:57]} 35... Qf1+ {[%clk 0:02:24.6]}
36. Bxf1 {[%clk 0:00:57.4]} 36... gxf1=Q+ {[%clk 0:02:25.5]} 37. Ke3 {[%clk
0:00:58.8]} 37... Qe1+ {[%clk 0:02:19.8]} 38. Kd3 {[%clk 0:01:00.1]} 38... Qd1+
{[%clk 0:02:20.4]} 39. Ke3 {[%clk 0:01:01.5]} 39... Qg1+ {[%clk 0:02:19.2]} 40.
Kd3 {[%clk 0:01:02.6]} 40... Qd1+ {[%clk 0:02:16.2]} 41. Ke3 {[%clk 0:01:03.9]}
41... Qg1+ {[%clk 0:02:16.4]} 42. Kd2 {[%clk 0:01:05.1]} 42... Qf2+ {[%clk
0:02:11.5]} 43. Kc1 {[%clk 0:01:06.2]} 43... Qe1+ {[%clk 0:02:12.3]} 44. Kb2
{[%clk 0:01:07.1]} 44... Qd2+ {[%clk 0:02:13.7]} 45. Kb3 {[%clk 0:01:06.9]}
45... Qd1+ {[%clk 0:02:14.5]} 46. Kb2 {[%clk 0:01:08.1]} 46... Qd2+ {[%clk
0:02:15.6]} 47. Kb3 {[%clk 0:01:09.4]} 47... Qd1+ {[%clk 0:02:16.7]} 48. Kb2
{[%clk 0:01:10.7]} 48... Qd2+ {[%clk 0:02:17.7]} 49. Kb3 {[%clk 0:01:11.7]}
1/2-1/2

[Event "*** Titled Tuesday Blitz"]
[Site "Chess.com"]
[Date "2018.05.01"]
[Round "1"]
[White "GMMatamoros"]
[Black "dmosesov"]
[Result "1-0"]
[WhiteElo "2513"]
[BlackElo "2181"]
[TimeControl "180+2"]
[EndTime "13:06:26 PDT"]
[Termination "GMMatamoros won by resignation"]

1. Nf3 {[%clk 0:02:59.5]} 1... d5 {[%clk 0:02:56.2]} 2. c4 {[%clk 0:02:56.5]}
2... e6 {[%clk 0:02:53.1]} 3. g3 {[%clk 0:02:57]} 3... Nf6 {[%clk 0:02:52.5]} 4.
Bg2 {[%clk 0:02:57.9]} 4... Be7 {[%clk 0:02:53.3]} 5. O-O {[%clk 0:02:58.1]}
5... O-O {[%clk 0:02:51.8]} 6. b3 {[%clk 0:02:58.5]} 6... b6 {[%clk 0:02:51.6]}
7. Bb2 {[%clk 0:02:58.9]} 7... Bb7 {[%clk 0:02:51.9]} 8. e3 {[%clk 0:02:59.2]}
8... dxc4 {[%clk 0:02:51.9]} 9. bxc4 {[%clk 0:02:59.4]} 9... c5 {[%clk
0:02:53.2]} 10. Nc3 {[%clk 0:02:58.8]} 10... Nc6 {[%clk 0:02:49.2]} 11. Qe2
{[%clk 0:02:59.3]} 11... Qc8 {[%clk 0:02:45.3]} 12. Ne1 {[%clk 0:02:57.2]} 12...
Rd8 {[%clk 0:02:43.5]} 13. f4 {[%clk 0:02:47.2]} 13... h6 {[%clk 0:01:55.2]} 14.
Rd1 {[%clk 0:02:45.9]} 14... Bf8 {[%clk 0:01:17.3]} 15. g4 {[%clk 0:02:43]}
15... Ne8 {[%clk 0:01:16.6]} 16. g5 {[%clk 0:02:26.1]} 16... hxg5 {[%clk
0:01:16.2]} 17. fxg5 {[%clk 0:02:28]} 17... Nd6 {[%clk 0:01:17.8]} 18. Ne4
{[%clk 0:02:14.2]} 18... Nf5 {[%clk 0:00:55]} 19. Qh5 {[%clk 0:02:09.4]} 19...
Nb4 {[%clk 0:00:37.4]} 20. g6 {[%clk 0:01:40]} 20... fxg6 {[%clk 0:00:15.4]} 21.
Qxg6 {[%clk 0:01:40.5]} 21... Bxe4 {[%clk 0:00:16.9]} 22. Bxe4 {[%clk
0:01:41.7]} 22... Rb8 {[%clk 0:00:18.3]} 23. Nf3 {[%clk 0:01:33.7]} 23... Nd3
{[%clk 0:00:14.4]} 24. Ng5 {[%clk 0:01:28.9]} 1-0